[Event "Early-Titled-Tuesday-Blitz-April-02-2024"]
[Site "Chess.com"]
[Date "2024.04.02"]
[Round "2"]
[White "Predo63"]
[Black "LeoWin2012"]
[Result "0-1"]
[WhiteElo "2512"]
[BlackElo "2308"]
[TimeControl "180+1"]
[EndTime "8:15:08 PDT"]
[Termination "LeoWin2012 won by checkmate"]

1. d4 {[%clk 0:03:00.9]} 1... Nf6 {[%clk 0:02:58.6]} 2. Bg5 {[%clk 0:03:00.9]}
2... e6 {[%clk 0:02:56]} 3. e3 {[%clk 0:03:00.4]} 3... d5 {[%clk 0:02:54.8]} 4.
Nd2 {[%clk 0:03:00.4]} 4... c5 {[%clk 0:02:53.9]} 5. c3 {[%clk 0:03:00.3]} 5...
Be7 {[%clk 0:02:53.6]} 6. f4 {[%clk 0:03:00.5]} 6... Nc6 {[%clk 0:02:52.8]} 7.
Bd3 {[%clk 0:03:00.6]} 7... b6 {[%clk 0:02:47.4]} 8. Ngf3 {[%clk 0:03:00.7]}
8... a5 {[%clk 0:02:47.4]} 9. Qe2 {[%clk 0:03:00.6]} 9... Bb7 {[%clk 0:02:46.8]}
10. O-O {[%clk 0:02:59.8]} 10... c4 {[%clk 0:02:46.2]} 11. Bc2 {[%clk
0:02:59.4]} 11... b5 {[%clk 0:02:46.4]} 12. Ne5 {[%clk 0:02:59]} 12... Nd7
{[%clk 0:02:43.1]} 13. Bxe7 {[%clk 0:02:58.3]} 13... Nxe7 {[%clk 0:02:40.5]} 14.
a3 {[%clk 0:02:50.4]} 14... Qc7 {[%clk 0:02:27.4]} 15. Nxd7 {[%clk 0:02:47.2]}
15... Qxd7 {[%clk 0:02:26.7]} 16. e4 {[%clk 0:02:47.6]} 16... dxe4 {[%clk
0:02:19.4]} 17. Nxe4 {[%clk 0:02:46.1]} 17... Bxe4 {[%clk 0:02:18.8]} 18. Bxe4
{[%clk 0:02:43.4]} 18... Nd5 {[%clk 0:02:19.1]} 19. a4 {[%clk 0:02:40.4]} 19...
O-O {[%clk 0:02:14.5]} 20. axb5 {[%clk 0:02:36.2]} 20... Qxb5 {[%clk 0:02:14.2]}
21. Rfb1 {[%clk 0:02:30.4]} 21... Rab8 {[%clk 0:02:12.1]} 22. Bxd5 {[%clk
0:02:27.8]} 22... exd5 {[%clk 0:02:08.7]} 23. Ra2 {[%clk 0:02:26.9]} 23... Rfe8
{[%clk 0:02:08.5]} 24. Qf3 {[%clk 0:02:25.8]} 24... Re4 {[%clk 0:02:08.3]} 25.
Rba1 {[%clk 0:02:25.1]} 25... Rbe8 {[%clk 0:02:05.9]} 26. h3 {[%clk 0:02:25.2]}
26... Re3 {[%clk 0:01:58.6]} 27. Qg4 {[%clk 0:02:25]} 27... Re2 {[%clk
0:01:56.3]} 28. Rxa5 {[%clk 0:02:21.3]} 28... Qxb2 {[%clk 0:01:55.5]} 29. Ra8
{[%clk 0:02:21.5]} 29... Qd2 {[%clk 0:01:19.1]} 30. Rxe8+ {[%clk 0:02:14.7]}
30... Rxe8 {[%clk 0:01:18]} 31. Qf3 {[%clk 0:02:14.3]} 31... g6 {[%clk
0:01:00.3]} 32. Qxd5 {[%clk 0:02:11]} 32... Qxc3 {[%clk 0:00:52.1]} 33. Ra7
{[%clk 0:02:06.2]} 33... Qc1+ {[%clk 0:00:50.8]} 34. Kf2 {[%clk 0:02:01.3]}
34... Qe3+ {[%clk 0:00:45.2]} 35. Kf1 {[%clk 0:01:59.9]} 35... Qe1# {[%clk
0:00:46.1]} 0-1

[Event "Early-Titled-Tuesday-Blitz-April-02-2024"]
[Site "Chess.com"]
[Date "2024.04.02"]
[Round "2"]
[White "MusicCityMaster"]
[Black "dianamirza"]
[Result "1-0"]
[WhiteElo "2422"]
[BlackElo "1977"]
[TimeControl "180+1"]
[EndTime "8:15:11 PDT"]
[Termination "MusicCityMaster won by resignation"]

1. d4 {[%clk 0:03:00.9]} 1... Nf6 {[%clk 0:02:38.4]} 2. c4 {[%clk 0:03:00.6]}
2... c5 {[%clk 0:02:37.9]} 3. d5 {[%clk 0:03:00.6]} 3... b5 {[%clk 0:02:38.5]}
4. cxb5 {[%clk 0:03:01.5]} 4... a6 {[%clk 0:02:37.8]} 5. Nc3 {[%clk 0:02:58.6]}
5... g6 {[%clk 0:02:36.9]} 6. e4 {[%clk 0:02:58.8]} 6... d6 {[%clk 0:02:35.6]}
7. a4 {[%clk 0:02:59]} 7... Bg7 {[%clk 0:02:34.2]} 8. Nf3 {[%clk 0:02:59.4]}
8... O-O {[%clk 0:02:32.6]} 9. Be2 {[%clk 0:02:55.1]} 9... axb5 {[%clk
0:02:32.5]} 10. Bxb5 {[%clk 0:02:54.9]} 10... Ba6 {[%clk 0:02:26.8]} 11. Ra3
{[%clk 0:02:55]} 11... Bxb5 {[%clk 0:02:25.2]} 12. axb5 {[%clk 0:02:55.3]} 12...
Rxa3 {[%clk 0:02:25.5]} 13. bxa3 {[%clk 0:02:55.5]} 13... Qa5 {[%clk 0:02:24.9]}
14. Bd2 {[%clk 0:02:55.7]} 14... Qxa3 {[%clk 0:02:24.3]} 15. O-O {[%clk
0:02:54.2]} 15... Nbd7 {[%clk 0:02:20.7]} 16. Qc2 {[%clk 0:02:50.3]} 16... Nb6
{[%clk 0:02:14.7]} 17. Rb1 {[%clk 0:02:42.7]} 17... Ra8 {[%clk 0:02:05.7]} 18.
h3 {[%clk 0:02:41.7]} 18... Nfd7 {[%clk 0:02:05]} 19. Rb3 {[%clk 0:02:16.8]}
19... Qa1+ {[%clk 0:01:42.9]} 20. Rb1 {[%clk 0:02:16.5]} 20... Qa3 {[%clk
0:01:39.7]} 21. Rb3 {[%clk 0:02:15.5]} 21... Qa1+ {[%clk 0:01:37]} 22. Kh2
{[%clk 0:02:15.2]} 22... c4 {[%clk 0:01:26]} 23. Rb1 {[%clk 0:02:14.5]} 23...
Qa3 {[%clk 0:01:25.8]} 24. Ne2 {[%clk 0:02:12.3]} 24... Nc5 {[%clk 0:01:20.4]}
25. Ned4 {[%clk 0:02:07.5]} 25... Qa2 {[%clk 0:01:13.9]} 26. Qxa2 {[%clk
0:01:57.4]} 26... Rxa2 {[%clk 0:01:14.8]} 27. Nc6 {[%clk 0:01:56.2]} 27... Nxe4
{[%clk 0:01:01.3]} 28. Be3 {[%clk 0:01:54.4]} 28... Nc8 {[%clk 0:00:55.7]} 29.
b6 {[%clk 0:01:53.4]} 29... Nxb6 {[%clk 0:00:44.7]} 30. Rxb6 {[%clk 0:01:54.3]}
30... Nxf2 {[%clk 0:00:44.2]} 31. Rb8+ {[%clk 0:01:53.8]} 31... Bf8 {[%clk
0:00:44.3]} 32. Bh6 {[%clk 0:01:53.9]} 1-0

[Event "Early-Titled-Tuesday-Blitz-April-02-2024"]
[Site "Chess.com"]
[Date "2024.04.02"]
[Round "2"]
[White "shanemelaughcm"]
[Black "Alexchess1984"]
[Result "0-1"]
[WhiteElo "2392"]
[BlackElo "2765"]
[TimeControl "180+1"]
[EndTime "8:15:12 PDT"]
[Termination "Alexchess1984 won by checkmate"]

1. e4 {[%clk 0:02:59.5]} 1... c5 {[%clk 0:02:59.7]} 2. Nc3 {[%clk 0:02:58.1]}
2... g6 {[%clk 0:02:58.6]} 3. f4 {[%clk 0:02:58.5]} 3... Bg7 {[%clk 0:02:58.5]}
4. Nf3 {[%clk 0:02:59.4]} 4... Nc6 {[%clk 0:02:58.4]} 5. Bb5 {[%clk 0:02:57.3]}
5... e6 {[%clk 0:02:55.7]} 6. d3 {[%clk 0:02:57.6]} 6... Nge7 {[%clk 0:02:55.5]}
7. O-O {[%clk 0:02:53.2]} 7... a6 {[%clk 0:02:55.4]} 8. Bxc6 {[%clk 0:02:47.9]}
8... Nxc6 {[%clk 0:02:56.3]} 9. Qe1 {[%clk 0:02:46.5]} 9... O-O {[%clk
0:02:55.8]} 10. Kh1 {[%clk 0:02:45.4]} 10... d6 {[%clk 0:02:51.1]} 11. h3 {[%clk
0:02:30.7]} 11... f5 {[%clk 0:02:49.8]} 12. Bd2 {[%clk 0:02:24.9]} 12... b5
{[%clk 0:02:49.1]} 13. a4 {[%clk 0:02:22.1]} 13... b4 {[%clk 0:02:47.8]} 14. Nd1
{[%clk 0:02:22.8]} 14... Qf6 {[%clk 0:02:27.6]} 15. c3 {[%clk 0:02:20.8]} 15...
a5 {[%clk 0:02:25.8]} 16. Qf2 {[%clk 0:01:41.1]} 16... Ba6 {[%clk 0:02:14.8]}
17. c4 {[%clk 0:01:10]} 17... fxe4 {[%clk 0:02:12.6]} 18. dxe4 {[%clk
0:01:06.4]} 18... Bxc4 {[%clk 0:02:11.8]} 19. Re1 {[%clk 0:01:06.8]} 19... e5
{[%clk 0:02:00.5]} 20. fxe5 {[%clk 0:01:03.8]} 20... Nxe5 {[%clk 0:01:58.3]} 21.
Bg5 {[%clk 0:00:46.4]} 21... Qe6 {[%clk 0:01:53]} 22. Re3 {[%clk 0:00:46.6]}
22... Nxf3 {[%clk 0:01:49.2]} 23. Rxf3 {[%clk 0:00:46]} 23... Qxe4 {[%clk
0:01:48.9]} 24. Rxf8+ {[%clk 0:00:43.9]} 24... Rxf8 {[%clk 0:01:47.9]} 25. Qd2
{[%clk 0:00:44.8]} 25... Rf1+ {[%clk 0:01:46]} 26. Kh2 {[%clk 0:00:44.6]} 26...
Be5+ {[%clk 0:01:46.4]} 27. g3 {[%clk 0:00:44.7]} 27... Rh1# {[%clk 0:01:44.8]}
0-1

[Event "Early-Titled-Tuesday-Blitz-April-02-2024"]
[Site "Chess.com"]
[Date "2024.04.02"]
[Round "2"]
[White "PolandHussars"]
[Black "LeninGuerra"]
[Result "1-0"]
[WhiteElo "2570"]
[BlackElo "2722"]
[TimeControl "180+1"]
[EndTime "8:15:13 PDT"]
[Termination "PolandHussars won by checkmate"]

1. e4 {[%clk 0:03:00.9]} 1... c5 {[%clk 0:02:59.9]} 2. Ne2 {[%clk 0:03:00.4]}
2... e6 {[%clk 0:03:00.3]} 3. g3 {[%clk 0:03:00.4]} 3... b6 {[%clk 0:03:00.3]}
4. Bg2 {[%clk 0:03:00.4]} 4... Bb7 {[%clk 0:03:01.2]} 5. O-O {[%clk 0:03:00.5]}
5... d6 {[%clk 0:03:01.6]} 6. c3 {[%clk 0:03:00.5]} 6... Nd7 {[%clk 0:03:02]} 7.
d4 {[%clk 0:03:00.6]} 7... cxd4 {[%clk 0:03:02.9]} 8. cxd4 {[%clk 0:03:01.2]}
8... Rc8 {[%clk 0:03:03.1]} 9. Nbc3 {[%clk 0:03:01.3]} 9... Qc7 {[%clk 0:03:03]}
10. Be3 {[%clk 0:03:01.1]} 10... Qb8 {[%clk 0:03:03]} 11. Rc1 {[%clk 0:03:01]}
11... Ngf6 {[%clk 0:03:03.1]} 12. f3 {[%clk 0:03:00.9]} 12... Be7 {[%clk
0:03:02.7]} 13. g4 {[%clk 0:03:00.9]} 13... O-O {[%clk 0:03:02.8]} 14. Ng3
{[%clk 0:03:01.1]} 14... d5 {[%clk 0:02:49.8]} 15. e5 {[%clk 0:03:00.9]} 15...
Ne8 {[%clk 0:02:49.7]} 16. f4 {[%clk 0:03:01.2]} 16... Ba6 {[%clk 0:02:32.9]}
17. Rf2 {[%clk 0:03:00.2]} 17... b5 {[%clk 0:02:31.9]} 18. f5 {[%clk 0:02:56.1]}
18... b4 {[%clk 0:02:19]} 19. Nce2 {[%clk 0:02:50.8]} 19... Rxc1 {[%clk
0:02:16.9]} 20. Qxc1 {[%clk 0:02:44.9]} 20... Bd3 {[%clk 0:02:05.7]} 21. Nf4
{[%clk 0:02:40.9]} 21... Qb6 {[%clk 0:01:50.3]} 22. Nxd3 {[%clk 0:02:39.7]}
22... Nc7 {[%clk 0:01:47]} 23. fxe6 {[%clk 0:02:28.6]} 23... fxe6 {[%clk
0:01:46.7]} 24. Rxf8+ {[%clk 0:02:27.9]} 24... Bxf8 {[%clk 0:01:47.1]} 25. Ne2
{[%clk 0:02:21.8]} 25... Nb8 {[%clk 0:01:36.5]} 26. Nc5 {[%clk 0:02:18.8]} 26...
Nc6 {[%clk 0:01:36.4]} 27. Nd7 {[%clk 0:02:15.3]} 27... Qb5 {[%clk 0:01:36.4]}
28. Nf4 {[%clk 0:02:07.7]} 28... Be7 {[%clk 0:01:30.5]} 29. Bf1 {[%clk
0:02:06.4]} 29... Qb7 {[%clk 0:01:20.1]} 30. Nc5 {[%clk 0:02:04.9]} 30... Qc8
{[%clk 0:01:20.4]} 31. Bd3 {[%clk 0:02:01.1]} 31... a5 {[%clk 0:01:18.6]} 32.
Qc2 {[%clk 0:02:00.5]} 32... h6 {[%clk 0:01:18]} 33. Bh7+ {[%clk 0:01:59.8]}
33... Kf8 {[%clk 0:01:14.6]} 34. Ng6+ {[%clk 0:01:56.7]} 34... Ke8 {[%clk
0:01:13.5]} 35. Nxe7 {[%clk 0:01:56.7]} 35... Kxe7 {[%clk 0:01:14.4]} 36. Qg6
{[%clk 0:01:52.2]} 36... Qf8 {[%clk 0:01:14.2]} 37. g5 {[%clk 0:01:52.2]} 37...
Qf3 {[%clk 0:01:02.3]} 38. Qxg7+ {[%clk 0:01:51.6]} 38... Kd8 {[%clk 0:01:02.8]}
39. Qd7# {[%clk 0:01:49.9]} 1-0

[Event "Early-Titled-Tuesday-Blitz-April-02-2024"]
[Site "Chess.com"]
[Date "2024.04.02"]
[Round "2"]
[White "WindWhistler11"]
[Black "HonestJoe1"]
[Result "1-0"]
[WhiteElo "2432"]
[BlackElo "2053"]
[TimeControl "180+1"]
[EndTime "8:15:21 PDT"]
[Termination "WindWhistler11 won by resignation"]

1. Nf3 {[%clk 0:03:00.9]} 1... c5 {[%clk 0:02:59.8]} 2. g3 {[%clk 0:03:00.2]}
2... Nc6 {[%clk 0:02:59.8]} 3. Bg2 {[%clk 0:03:00.6]} 3... g6 {[%clk 0:02:58.8]}
4. O-O {[%clk 0:03:00]} 4... Bg7 {[%clk 0:02:58.1]} 5. c4 {[%clk 0:02:57.6]}
5... Nf6 {[%clk 0:02:57.1]} 6. Nc3 {[%clk 0:02:58.1]} 6... O-O {[%clk
0:02:55.9]} 7. d4 {[%clk 0:02:56.2]} 7... cxd4 {[%clk 0:02:55.7]} 8. Nxd4 {[%clk
0:02:56.8]} 8... Ng4 {[%clk 0:02:55.9]} 9. Nc2 {[%clk 0:02:55.8]} 9... d6 {[%clk
0:02:48.9]} 10. h3 {[%clk 0:02:51.5]} 10... Nge5 {[%clk 0:02:44.9]} 11. Ne3
{[%clk 0:02:44.9]} 11... Be6 {[%clk 0:02:42.2]} 12. Ncd5 {[%clk 0:02:36.2]}
12... Na5 {[%clk 0:02:42.1]} 13. Rb1 {[%clk 0:02:21.5]} 13... Naxc4 {[%clk
0:02:38.9]} 14. Nxc4 {[%clk 0:02:21.8]} 14... Nxc4 {[%clk 0:02:38.8]} 15. Nf4
{[%clk 0:02:22.2]} 15... Bf5 {[%clk 0:02:31.4]} 16. e4 {[%clk 0:02:18.9]} 16...
Bd7 {[%clk 0:02:30.5]} 17. b3 {[%clk 0:02:16.2]} 17... Ne5 {[%clk 0:02:29.8]}
18. Be3 {[%clk 0:02:05.9]} 18... b6 {[%clk 0:02:24.5]} 19. Re1 {[%clk
0:02:00.8]} 19... Rc8 {[%clk 0:02:23.4]} 20. Nd5 {[%clk 0:01:54.5]} 20... Be6
{[%clk 0:02:22.6]} 21. Nf4 {[%clk 0:01:53.1]} 21... Bd7 {[%clk 0:02:22.5]} 22.
Nd5 {[%clk 0:01:51.6]} 22... Be6 {[%clk 0:02:22.4]} 23. h4 {[%clk 0:01:45.2]}
23... Qd7 {[%clk 0:02:19]} 24. Nf4 {[%clk 0:01:44.3]} 24... Bg4 {[%clk
0:02:15.6]} 25. f3 {[%clk 0:01:43.2]} 25... Be6 {[%clk 0:02:15.4]} 26. Nxe6
{[%clk 0:01:40.6]} 26... Qxe6 {[%clk 0:02:15.5]} 27. Kh2 {[%clk 0:01:38.5]}
27... Rc7 {[%clk 0:02:08.7]} 28. Bh3 {[%clk 0:01:36]} 28... Qf6 {[%clk
0:02:08.8]} 29. Kg2 {[%clk 0:01:09.5]} 29... e6 {[%clk 0:02:03.3]} 30. Bg5
{[%clk 0:01:06.7]} 30... Rc2+ {[%clk 0:01:41.4]} 31. Qxc2 {[%clk 0:00:59.5]}
31... Qxf3+ {[%clk 0:01:40.9]} 32. Kh2 {[%clk 0:00:59.5]} 1-0

[Event "Early-Titled-Tuesday-Blitz-April-02-2024"]
[Site "Chess.com"]
[Date "2024.04.02"]
[Round "2"]
[White "Mikhail_Golubev"]
[Black "diamonds13"]
[Result "1-0"]
[WhiteElo "2617"]
[BlackElo "2366"]
[TimeControl "180+1"]
[EndTime "8:15:30 PDT"]
[Termination "Mikhail_Golubev won by resignation"]

1. e4 {[%clk 0:03:00.9]} 1... c5 {[%clk 0:03:00]} 2. Ne2 {[%clk 0:03:00.9]} 2...
e6 {[%clk 0:03:00.4]} 3. d4 {[%clk 0:03:00.4]} 3... cxd4 {[%clk 0:03:00.2]} 4.
Nxd4 {[%clk 0:03:01.3]} 4... Nc6 {[%clk 0:03:00.1]} 5. Nc3 {[%clk 0:03:00.7]}
5... Nf6 {[%clk 0:02:59.3]} 6. a3 {[%clk 0:02:59]} 6... a6 {[%clk 0:02:54.4]} 7.
Nxc6 {[%clk 0:02:58]} 7... bxc6 {[%clk 0:02:54]} 8. e5 {[%clk 0:02:58.2]} 8...
Nd5 {[%clk 0:02:54.1]} 9. Ne4 {[%clk 0:02:58.3]} 9... Qc7 {[%clk 0:02:45.5]} 10.
f4 {[%clk 0:02:52.4]} 10... c5 {[%clk 0:02:44.3]} 11. c4 {[%clk 0:02:44.8]}
11... Nb6 {[%clk 0:02:35.9]} 12. Nd6+ {[%clk 0:02:38.7]} 12... Bxd6 {[%clk
0:02:33.7]} 13. exd6 {[%clk 0:02:39]} 13... Qc6 {[%clk 0:02:24.7]} 14. Be2
{[%clk 0:02:39]} 14... Bb7 {[%clk 0:02:24.2]} 15. Bf3 {[%clk 0:02:37.7]} 15...
Qc8 {[%clk 0:02:24.1]} 16. b3 {[%clk 0:02:27.1]} 16... Bc6 {[%clk 0:02:17.1]}
17. O-O {[%clk 0:02:16.7]} 17... f5 {[%clk 0:02:09.6]} 18. Bb2 {[%clk
0:02:05.6]} 18... O-O {[%clk 0:02:08.7]} 19. Rc1 {[%clk 0:01:52]} 19... a5
{[%clk 0:02:07]} 20. a4 {[%clk 0:01:42.4]} 20... Rb8 {[%clk 0:01:30.7]} 21. Qd2
{[%clk 0:01:29.8]} 21... Bxf3 {[%clk 0:01:24]} 22. Rxf3 {[%clk 0:01:28.3]} 22...
Qb7 {[%clk 0:01:21]} 23. Rg3 {[%clk 0:01:15.5]} 23... Rf7 {[%clk 0:01:19.6]} 24.
Qc3 {[%clk 0:01:12.5]} 24... e5 {[%clk 0:00:59.4]} 25. Qxe5 {[%clk 0:01:08.2]}
1-0

[Event "Early-Titled-Tuesday-Blitz-April-02-2024"]
[Site "Chess.com"]
[Date "2024.04.02"]
[Round "2"]
[White "Jospem"]
[Black "Zavgorodniy_Sergiy"]
[Result "1-0"]
[WhiteElo "3059"]
[BlackElo "2653"]
[TimeControl "180+1"]
[EndTime "8:15:33 PDT"]
[Termination "Jospem won by resignation"]

1. e4 {[%clk 0:03:00.9]} 1... c6 {[%clk 0:03:00.3]} 2. d4 {[%clk 0:03:00.9]}
2... d5 {[%clk 0:03:01.2]} 3. e5 {[%clk 0:03:01.6]} 3... Bf5 {[%clk 0:03:01.1]}
4. h4 {[%clk 0:03:02]} 4... h5 {[%clk 0:03:00.7]} 5. Bd3 {[%clk 0:03:02.3]} 5...
Bxd3 {[%clk 0:03:00.8]} 6. Qxd3 {[%clk 0:03:03.2]} 6... Qa5+ {[%clk 0:03:00.8]}
7. b4 {[%clk 0:03:03.5]} 7... Qxb4+ {[%clk 0:03:00.6]} 8. Nd2 {[%clk 0:03:03.4]}
8... e6 {[%clk 0:03:00.9]} 9. Rb1 {[%clk 0:03:04]} 9... Qe7 {[%clk 0:03:01]} 10.
Ne2 {[%clk 0:03:04.7]} 10... Nh6 {[%clk 0:02:58]} 11. Nf3 {[%clk 0:03:04.7]}
11... Nf5 {[%clk 0:02:58.1]} 12. Ng3 {[%clk 0:03:04.6]} 12... g6 {[%clk
0:02:41.4]} 13. Bg5 {[%clk 0:03:03.6]} 13... Qd7 {[%clk 0:02:37.7]} 14. Nxf5
{[%clk 0:03:03.9]} 14... gxf5 {[%clk 0:02:36.9]} 15. O-O {[%clk 0:03:02.6]}
15... Be7 {[%clk 0:02:25.8]} 16. a4 {[%clk 0:02:57.5]} 16... Na6 {[%clk
0:02:20.5]} 17. Rb2 {[%clk 0:02:47.2]} 17... c5 {[%clk 0:01:31.9]} 18. Bxe7
{[%clk 0:02:44.3]} 18... Kxe7 {[%clk 0:01:31.9]} 19. Rfb1 {[%clk 0:02:43.8]}
19... c4 {[%clk 0:01:27.1]} 20. Qa3+ {[%clk 0:02:43.2]} 20... Ke8 {[%clk
0:01:21.8]} 21. Rxb7 {[%clk 0:02:42.8]} 21... Qd8 {[%clk 0:01:19.9]} 22. Ng5
{[%clk 0:02:41.5]} 22... Nc7 {[%clk 0:01:18.4]} 23. Qc5 {[%clk 0:02:38.7]} 23...
Rc8 {[%clk 0:01:14.3]} 24. Rxa7 {[%clk 0:02:39]} 24... Qe7 {[%clk 0:00:59.4]}
25. Rxc7 {[%clk 0:02:25.9]} 25... Qxc7 {[%clk 0:00:50.8]} 26. Qxc7 {[%clk
0:02:25.8]} 26... Rxc7 {[%clk 0:00:51.7]} 27. Rb8+ {[%clk 0:02:25.8]} 27... Ke7
{[%clk 0:00:51.4]} 28. Rxh8 {[%clk 0:02:26.3]} 28... Ra7 {[%clk 0:00:48.7]} 29.
Rh7 {[%clk 0:02:26.5]} 29... Rxa4 {[%clk 0:00:48.2]} 30. Rxf7+ {[%clk 0:02:27]}
30... Ke8 {[%clk 0:00:48.7]} 31. Rc7 {[%clk 0:02:24.5]} 31... Ra1+ {[%clk
0:00:48]} 32. Kh2 {[%clk 0:02:24.5]} 32... Rc1 {[%clk 0:00:48.3]} 33. Nxe6
{[%clk 0:02:25.1]} 33... Rxc2 {[%clk 0:00:48.7]} 34. Ng5 {[%clk 0:02:24.4]}
34... Rxf2 {[%clk 0:00:43.1]} 35. e6 {[%clk 0:02:20.3]} 35... Rf4 {[%clk
0:00:41.4]} 36. Nf7 {[%clk 0:02:12.7]} 36... Rxh4+ {[%clk 0:00:35]} 37. Kg1
{[%clk 0:02:12.3]} 37... Kf8 {[%clk 0:00:30.8]} 38. Nd6 {[%clk 0:02:12]} 38...
Re4 {[%clk 0:00:25.9]} 39. Rf7+ {[%clk 0:02:09.4]} 39... Kg8 {[%clk 0:00:25.1]}
40. Nxe4 {[%clk 0:02:10.3]} 40... fxe4 {[%clk 0:00:22.4]} 41. Rf1 {[%clk
0:02:11.2]} 1-0

[Event "Early-Titled-Tuesday-Blitz-April-02-2024"]
[Site "Chess.com"]
[Date "2024.04.02"]
[Round "2"]
[White "noblerone"]
[Black "pirulillo"]
[Result "1-0"]
[WhiteElo "2547"]
[BlackElo "2336"]
[TimeControl "180+1"]
[EndTime "8:15:34 PDT"]
[Termination "noblerone won by resignation"]

1. d4 {[%clk 0:02:57.3]} 1... Nf6 {[%clk 0:02:53.4]} 2. Nf3 {[%clk 0:02:56.1]}
2... g6 {[%clk 0:02:53.2]} 3. Bg5 {[%clk 0:02:56.2]} 3... Bg7 {[%clk 0:02:53.6]}
4. Nbd2 {[%clk 0:02:56.4]} 4... d5 {[%clk 0:02:53.1]} 5. e3 {[%clk 0:02:56.2]}
5... O-O {[%clk 0:02:52.8]} 6. Be2 {[%clk 0:02:55.7]} 6... c5 {[%clk 0:02:51.5]}
7. O-O {[%clk 0:02:54.5]} 7... Nc6 {[%clk 0:02:50.4]} 8. c3 {[%clk 0:02:50.2]}
8... h6 {[%clk 0:02:47.7]} 9. Bxf6 {[%clk 0:02:46.2]} 9... Bxf6 {[%clk
0:02:47.2]} 10. dxc5 {[%clk 0:02:37.4]} 10... e5 {[%clk 0:02:46.3]} 11. a4
{[%clk 0:02:34.7]} 11... Qe7 {[%clk 0:02:42.6]} 12. Nb3 {[%clk 0:02:33.9]} 12...
e4 {[%clk 0:02:35.9]} 13. Nfd4 {[%clk 0:02:31.2]} 13... Ne5 {[%clk 0:02:35.3]}
14. Rc1 {[%clk 0:02:27.4]} 14... h5 {[%clk 0:02:28.4]} 15. h3 {[%clk 0:02:15]}
15... Bd7 {[%clk 0:02:27.2]} 16. Bb5 {[%clk 0:02:05.9]} 16... a6 {[%clk
0:02:07.6]} 17. Bxd7 {[%clk 0:02:04.9]} 17... Qxd7 {[%clk 0:02:08.5]} 18. Nd2
{[%clk 0:01:51.3]} 18... Rac8 {[%clk 0:02:05.2]} 19. b4 {[%clk 0:01:49.6]} 19...
Nd3 {[%clk 0:01:28]} 20. Rb1 {[%clk 0:01:44.6]} 20... Be5 {[%clk 0:01:27.4]} 21.
f4 {[%clk 0:01:33]} 21... exf3 {[%clk 0:01:17.7]} 22. N2xf3 {[%clk 0:01:31.8]}
22... Bxd4 {[%clk 0:01:03.2]} 23. cxd4 {[%clk 0:01:21.6]} 23... Qf5 {[%clk
0:00:59.8]} 24. Ne5 {[%clk 0:01:16.3]} 24... Nxe5 {[%clk 0:00:48.8]} 25. Rxf5
{[%clk 0:01:15.8]} 25... gxf5 {[%clk 0:00:47.7]} 26. dxe5 {[%clk 0:01:16]} 1-0

[Event "Early-Titled-Tuesday-Blitz-April-02-2024"]
[Site "Chess.com"]
[Date "2024.04.02"]
[Round "2"]
[White "tortorchess"]
[Black "SaiAgni_98"]
[Result "0-1"]
[WhiteElo "2200"]
[BlackElo "2496"]
[TimeControl "180+1"]
[EndTime "8:15:34 PDT"]
[Termination "SaiAgni_98 won by resignation"]

1. d4 {[%clk 0:03:00.9]} 1... d5 {[%clk 0:02:58.2]} 2. c4 {[%clk 0:02:59.1]}
2... c6 {[%clk 0:02:58.3]} 3. Nc3 {[%clk 0:02:58.6]} 3... Nf6 {[%clk 0:02:58.2]}
4. Nf3 {[%clk 0:02:58.8]} 4... e6 {[%clk 0:02:57]} 5. Bg5 {[%clk 0:02:59.2]}
5... Nbd7 {[%clk 0:02:56.1]} 6. e3 {[%clk 0:02:59.1]} 6... Be7 {[%clk 0:02:53]}
7. Bd3 {[%clk 0:02:58.6]} 7... h6 {[%clk 0:02:52.6]} 8. Bh4 {[%clk 0:02:58.1]}
8... dxc4 {[%clk 0:02:51.5]} 9. Bxc4 {[%clk 0:02:57.2]} 9... b5 {[%clk
0:02:52.2]} 10. Bb3 {[%clk 0:02:57]} 10... Bb7 {[%clk 0:02:52.3]} 11. O-O {[%clk
0:02:51.6]} 11... O-O {[%clk 0:02:51.5]} 12. Bc2 {[%clk 0:02:50.2]} 12... b4
{[%clk 0:02:36.7]} 13. Na4 {[%clk 0:02:42.7]} 13... c5 {[%clk 0:02:36.6]} 14.
dxc5 {[%clk 0:02:32.3]} 14... Nxc5 {[%clk 0:02:35.9]} 15. Nxc5 {[%clk
0:02:28.7]} 15... Bxc5 {[%clk 0:02:35.6]} 16. Qxd8 {[%clk 0:02:26.5]} 16...
Rfxd8 {[%clk 0:02:36]} 17. Bxf6 {[%clk 0:02:25.8]} 17... gxf6 {[%clk 0:02:36.3]}
18. Nh4 {[%clk 0:02:08.9]} 18... f5 {[%clk 0:02:33.1]} 19. Rfd1 {[%clk
0:02:03.9]} 19... Kg7 {[%clk 0:02:29.3]} 20. g3 {[%clk 0:02:01.5]} 20... Be7
{[%clk 0:02:21.5]} 21. Ng2 {[%clk 0:01:56.5]} 21... Bf6 {[%clk 0:02:17.7]} 22.
Rab1 {[%clk 0:01:49.9]} 22... Bf3 {[%clk 0:02:13.2]} 23. Rdc1 {[%clk 0:01:43.3]}
23... Rac8 {[%clk 0:02:07.3]} 24. Ne1 {[%clk 0:01:38]} 24... Bd5 {[%clk
0:02:05.7]} 25. b3 {[%clk 0:01:31.1]} 25... Bc3 {[%clk 0:01:55.9]} 26. Nd3
{[%clk 0:01:28.8]} 26... Bd2 {[%clk 0:01:49.4]} 27. Rd1 {[%clk 0:01:04.1]} 27...
Rxc2 {[%clk 0:01:46.5]} 28. Nf4 {[%clk 0:00:50.8]} 28... Bf3 {[%clk 0:01:43.2]}
29. Rf1 {[%clk 0:00:50.2]} 29... e5 {[%clk 0:01:38.7]} 30. Nh3 {[%clk
0:00:43.3]} 30... Be2 {[%clk 0:01:37.8]} 0-1